bitfinex-derivatives/quotes_BTCF0:USTF0_20241221
["timestamp","ask_amount","ask_price","bid_price","bid_amount"]
[1734815399543,0.2249008,97403.0,97402.0,0.001]
[1734815400155,0.12488664,97403.0,97402.0,0.001]
[1734815400365,0.11474043,97403.0,97402.0,0.001]
[1734815400551,0.051354,97397.0,97396.0,0.00153991]
[1734815400750,0.412154,97397.0,97396.0,0.00153991]
[1734815401259,0.43048587,97397.0,97396.0,0.00153991]
[1734815401861,0.48272911,97397.0,97396.0,0.00353991]
[1734815403052,0.48372911,97397.0,97396.0,0.00353991]
[1734815403562,0.48373986,97397.0,97396.0,0.00353991]
[1734815404065,0.48374066,97397.0,97396.0,0.00353991]
[1734815405859,0.48376686,97397.0,97396.0,0.00353991]
[1734815406453,0.48377543,97397.0,97396.0,0.00353991]
[1734815406964,0.49353594,97397.0,97396.0,0.00353991]
[1734815407165,0.49953594,97397.0,97396.0,0.00353991]
[1734815407662,0.49253594,97397.0,97396.0,0.00353991]
[1734815407861,0.49636248,97397.0,97396.0,0.00153991]
[1734815408464,0.50453594,97397.0,97396.0,0.00153991]
[1734815408657,0.49636248,97397.0,97396.0,0.00153991]
[1734815409361,0.50453594,97397.0,97396.0,0.00153991]
[1734815409561,0.49636248,97397.0,97396.0,0.00153991]
[1734815409954,0.49436248,97397.0,97396.0,0.00153991]
[1734815410269,0.50980248,97397.0,97396.0,0.00153991]
[1734815410568,0.51797594,97397.0,97396.0,0.00153991]
[1734815410759,0.50880248,97397.0,97396.0,0.00153991]
[1734815410959,0.50380248,97397.0,97396.0,0.00153991]
[1734815411154,0.51080248,97397.0,97396.0,0.00153991]
[1734815411355,0.51896832,97397.0,97396.0,0.00153991]
[1734815411556,0.51080248,97397.0,97396.0,0.00153991]
[1734815411756,0.51180248,97397.0,97396.0,0.00153991]
[1734815412564,0.5107939,97397.0,97396.0,0.00153991]
[1734815412965,0.61225665,97397.0,97396.0,0.00153991]
[1734815413264,0.25027766,97397.0,97396.0,0.00153991]
[1734815413465,0.25845665,97397.0,97396.0,0.00153991]
[1734815414260,0.10592965,97397.0,97396.0,0.00153991]
[1734815414459,0.10192965,97397.0,97396.0,0.00153991]
[1734815414765,0.10592965,97397.0,97396.0,0.00153991]
[1734815417166,0.15819961,97397.0,97396.0,0.00153991]
[1734815417666,0.10684561,97397.0,97396.0,0.00153991]
[1734815418064,0.0986179,97397.0,97396.0,0.00153991]
[1734815418259,0.10679689,97397.0,97396.0,0.00153991]
[1734815418661,0.18193331,97397.0,97396.0,0.00153991]
[1734815421187,0.16360689,97397.0,97396.0,0.00153991]
[1734815421466,0.18191066,97397.0,97396.0,0.00153991]
[1734815421970,0.2640964,97397.0,97396.0,0.00153991]
[1734815422165,0.051355,97396.0,97388.0,0.05091195]
[1734815422471,0.01830377,97395.0,97388.0,0.05091195]
[1734815422671,0.01830377,97394.0,97389.0,0.051358]
[1734815422969,0.01830377,97393.0,97389.0,0.051358]
[1734815423164,0.01830377,97392.0,97389.0,0.051358]
[1734815423363,0.01830377,97391.0,97389.0,0.051358]
[1734815423562,0.01830377,97390.0,97389.0,0.051358]
[1734815423763,0.01830469,97390.0,97389.0,0.051358]
[1734815423971,0.17088989,97390.0,97389.0,0.051358]
[1734815425270,0.07075596,97390.0,97389.0,0.051358]
[1734815425465,0.07375596,97390.0,97389.0,0.051358]
[1734815426474,0.07675596,97390.0,97389.0,0.051358]
[1734815426773,0.0242567,97390.0,97389.0,0.051358]
[1734815427667,0.0756147,97390.0,97389.0,0.051358]
[1734815428066,0.12506597,97390.0,97389.0,0.051358]
[1734815428267,0.12806597,97390.0,97389.0,0.051358]
[1734815428465,0.12506597,97390.0,97389.0,0.051358]
[1734815428778,0.12806597,97390.0,97389.0,0.051358]
[1734815429975,0.12807627,97390.0,97389.0,0.051358]
[1734815432477,0.12805851,97390.0,97389.0,0.051358]
[1734815432775,0.07670051,97390.0,97389.0,0.051358]
[1734815433273,0.07370051,97390.0,97389.0,0.051358]
[1734815433471,0.18310224,97392.0,97388.0,0.3608]
[1734815433773,0.00822779,97399.0,97389.0,0.08961445]
[1734815434074,0.00824682,97405.0,97404.0,0.05135]
[1734815435170,0.005,97405.0,97404.0,0.05135]
[1734815435372,0.14333869,97405.0,97404.0,0.05135]
[1734815436178,0.13509187,97405.0,97404.0,0.05135]
[1734815436680,0.14333869,97405.0,97404.0,0.05135]
[1734815436981,0.013,97405.0,97404.0,0.05135]
[1734815437367,0.013,97405.0,97398.0,0.3608]
[1734815437580,0.051353,97399.0,97397.0,0.18448762]
[1734815437771,0.00824682,97398.0,97397.0,0.18448762]
[1734815438375,0.00824682,97398.0,97393.0,0.13458762]
[1734815438376,0.36903375,97398.0,97393.0,0.13458762]
[1734815438602,0.051356,97394.0,97393.0,0.13458762]
[1734815438774,0.05958975,97394.0,97393.0,0.13458762]
[1734815439572,0.06458975,97394.0,97393.0,0.13458762]
[1734815440174,0.051358,97389.0,97388.0,0.3608]
[1734815440381,0.05959175,97389.0,97388.0,0.3608]
[1734815441486,0.054358,97389.0,97388.0,0.3608]
[1734815441884,0.057358,97389.0,97388.0,0.3608]
[1734815442184,0.06558119,97389.0,97388.0,0.3608]
[1734815442379,0.057358,97389.0,97388.0,0.3608]
[1734815442579,0.06558119,97389.0,97388.0,0.3608]
[1734815442774,0.090658,97389.0,97388.0,0.3608]
[1734815442982,0.090658,97389.0,97383.0,0.051361]
[1734815442983,0.051361,97384.0,97371.0,0.71492824]
[1734815443175,0.04752319,97389.0,97371.0,0.71492824]
[1734815443176,0.00822319,97388.0,97371.0,0.46912014]
[1734815443376,0.051362,97382.0,97379.0,0.051363]
[1734815445082,0.053362,97382.0,97379.0,0.051363]
[1734815445382,0.055362,97382.0,97379.0,0.051363]
[1734815446378,0.053362,97382.0,97379.0,0.051363]
[1734815446577,0.054362,97382.0,97379.0,0.051363]
[1734815447289,0.052362,97382.0,97379.0,0.051363]
[1734815447486,0.001,97382.0,97379.0,0.051363]
[1734815447691,0.051366,97375.0,97371.0,0.3608]
[1734815448985,0.052366,97375.0,97371.0,0.3608]
[1734815450186,0.17414693,97375.0,97371.0,0.3608]
[1734815451693,0.052366,97375.0,97371.0,0.3608]
[1734815452900,0.052366,97375.0,97373.0,0.05149206]
[1734815455403,0.052366,97375.0,97373.0,0.00012606]
[1734815455608,0.0323,97374.0,97373.0,0.00012606]
[1734815455911,0.0323,97374.0,97354.0,0.00482339]
[1734815456110,0.051375,97359.0,97354.0,0.00482339]
[1734815456408,0.051375,97359.0,97355.0,0.051376]
[1734815456600,0.051375,97359.0,97354.0,0.00482339]
[1734815456905,0.051375,97359.0,97356.0,0.051375]
[1734815457206,0.0001059,97358.0,97356.0,0.051375]
[1734815457506,0.09128098,97357.0,97356.0,0.051375]
[1734815458602,0.09128098,97357.0,97356.0,0.053375]
[1734815458807,0.0021059,97358.0,97356.0,0.053375]
[1734815459906,0.001,97357.0,97356.0,0.053375]
[1734815460509,0.0534809,97358.0,97356.0,0.053375]
[1734815460907,0.0524809,97358.0,97356.0,0.053375]
[1734815461409,0.0514809,97358.0,97356.0,0.051375]
[1734815461608,0.001,97357.0,97356.0,0.053375]
[1734815462905,0.001,97357.0,97356.0,0.051375]
[1734815463104,0.0524809,97358.0,97356.0,0.051375]
[1734815463812,0.002,97357.0,97356.0,0.051375]
[1734815464111,0.004,97357.0,97356.0,0.051375]
[1734815464310,0.002,97357.0,97356.0,0.051375]
[1734815464902,0.004,97357.0,97356.0,0.051375]
[1734815465709,0.004,97357.0,97342.0,0.3608]
[1734815465914,0.051378,97352.0,97350.0,0.051379]
[1734815466812,0.051376,97355.0,97353.0,0.051377]
[1734815468109,0.002,97355.0,97353.0,0.051377]
[1734815468505,0.002,97355.0,97354.0,0.0646]
[1734815468815,0.09328098,97355.0,97354.0,0.0646]
[1734815469111,0.09328098,97355.0,97353.0,0.41968019]
[1734815469314,0.09328098,97355.0,97353.0,0.41888019]
[1734815469506,0.09428098,97355.0,97353.0,0.41888019]
[1734815469908,0.003,97355.0,97353.0,0.41888019]
[1734815470213,1e-08,97358.0,97353.0,0.72088019]
[1734815470515,0.12178093,97376.0,97375.0,0.051366]
[1734815470701,0.12178093,97376.0,97375.0,0.772966]
[1734815471602,0.083756,97393.0,97386.0,0.051359]
[1734815471804,0.083756,97393.0,97388.0,0.051359]
[1734815472310,0.083756,97393.0,97389.0,0.051358]
[1734815473214,0.091756,97393.0,97390.0,0.051358]
[1734815473424,0.0494,97393.0,97392.0,0.412157]
[1734815473715,0.0404,97393.0,97392.0,0.412157]
[1734815473925,0.0414,97393.0,97392.0,0.412157]
[1734815474105,0.0494,97393.0,97392.0,0.412157]
[1734815474612,0.0494,97393.0,97392.0,0.051357]
[1734815475212,0.0494,97393.0,97392.0,0.412157]
[1734815475806,0.0404,97393.0,97392.0,0.412157]
[1734815476010,0.0494,97393.0,97392.0,0.412157]
[1734815476418,0.0404,97393.0,97392.0,0.412157]
[1734815478322,0.008,97393.0,97392.0,0.412157]
[1734815478626,0.04583617,97404.0,97403.0,0.051351]
[1734815478811,0.00703203,97404.0,97403.0,0.412151]
[1734815480320,0.0304,97420.0,97419.0,0.051342]
[1734815480525,0.0304,97420.0,97419.0,0.412142]
[1734815482226,0.0314,97420.0,97419.0,0.412142]
[1734815482533,0.003,97420.0,97419.0,0.412142]
[1734815483733,0.002,97420.0,97419.0,0.78322902]
[1734815484024,0.001,97420.0,97419.0,0.78322902]
[1734815485931,0.002,97420.0,97419.0,0.78322902]
[1734815487516,0.002,97420.0,97419.0,0.772942]
[1734815487820,0.002,97420.0,97419.0,0.412142]
[1734815488420,0.002,97420.0,97419.0,0.051342]
[1734815491522,0.002,97420.0,97410.0,0.3608]
[1734815491823,0.053342,97420.0,97416.0,0.051344]
[1734815492029,0.002,97420.0,97410.0,0.3608]
[1734815492224,0.051346,97411.0,97410.0,0.3608]
[1734815492625,0.051346,97411.0,97410.0,0.3618]
[1734815492825,0.051346,97411.0,97410.0,0.3628]
[1734815493426,0.051346,97411.0,97410.0,0.3638]
[1734815493624,0.058346,97411.0,97410.0,0.3628]
[1734815494327,0.061346,97411.0,97410.0,0.3608]
[1734815495230,0.059346,97411.0,97410.0,0.3608]
[1734815495628,0.056346,97411.0,97410.0,0.3608]
[1734815495834,0.059346,97411.0,97410.0,0.3608]
[1734815497031,0.06945482,97411.0,97410.0,0.3608]
[1734815497928,0.06945482,97411.0,97408.0,0.051348]
[1734815498234,0.051347,97409.0,97408.0,0.051348]
[1734815499824,0.055347,97409.0,97408.0,0.051348]
[1734815500234,0.057347,97409.0,97408.0,0.051348]
[1734815502936,0.051349,97406.0,97405.0,9.077e-05]
[1734815504737,0.053349,97406.0,97405.0,9.077e-05]
[1734815504936,0.056349,97406.0,97405.0,9.077e-05]
[1734815505531,0.20875696,97406.0,97405.0,9.077e-05]
[1734815505733,0.20675696,97406.0,97405.0,9.077e-05]
[1734815506035,0.15940796,97406.0,97399.0,0.00151423]
[1734815506244,0.15940796,97406.0,97404.0,0.05135]
[1734815506447,0.007,97406.0,97404.0,0.05135]
[1734815506835,0.00011885,97405.0,97404.0,0.05135]
[1734815507548,0.051352,97401.0,97399.0,0.00151423]
[1734815507731,0.03,97400.0,97399.0,0.00151423]
[1734815509446,0.031,97400.0,97399.0,0.00151423]
[1734815509745,0.033,97400.0,97399.0,0.00151423]
[1734815510743,0.18540796,97400.0,97399.0,0.00151423]
[1734815511537,0.20084796,97400.0,97399.0,0.00151423]
[1734815511739,0.04844,97400.0,97399.0,0.00151423]
[1734815512548,0.05849236,97400.0,97399.0,0.00151423]
[1734815513250,0.051353,97399.0,97390.0,0.12143773]
[1734815513451,0.051353,97399.0,97397.0,0.051354]
[1734815513637,0.003,97400.0,97399.0,0.051353]
[1734815514544,0.0102212,97404.0,97393.0,0.3608]
[1734815514846,0.00011885,97405.0,97403.0,0.051351]
[1734815515251,0.003,97400.0,97393.0,0.3608]
[1734815515640,0.001,97400.0,97393.0,0.3608]
[1734815516040,0.001,97400.0,97399.0,0.051353]
[1734815516839,0.051352,97401.0,97399.0,0.051353]
[1734815517948,0.053352,97401.0,97399.0,0.051353]
[1734815518151,0.001,97400.0,97399.0,0.051353]
[1734815519038,0.001,97400.0,97393.0,0.3608]
[1734815519349,0.051354,97397.0,97395.0,0.051355]
[1734815520738,0.002,97401.0,97393.0,0.3608]
[1734815520938,0.16259924,97405.0,97393.0,0.3608]
[1734815521148,0.002,97400.0,97399.0,0.051353]
[1734815521571,0.051351,97403.0,97399.0,0.051353]
[1734815522355,0.002,97400.0,97399.0,0.051353]
[1734815522844,0.16259924,97405.0,97404.0,0.05135]
[1734815523045,0.16259924,97405.0,97404.0,0.41215]
[1734815523945,0.01019128,97405.0,97404.0,0.41215]
[1734815524854,0.16459924,97405.0,97404.0,0.41215]
[1734815525048,0.16859924,97405.0,97404.0,0.05135]
[1734815525355,0.17684561,97405.0,97404.0,0.05135]
[1734815526357,0.07599519,97405.0,97404.0,0.05135]
[1734815526951,0.07600418,97405.0,97404.0,0.05135]
[1734815527451,0.02444664,97405.0,97404.0,0.05135]
[1734815527855,0.01619128,97405.0,97404.0,0.05135]
[1734815528051,0.02444766,97405.0,97404.0,0.05135]
[1734815528254,0.01437523,97405.0,97404.0,0.05135]
[1734815528964,0.05922696,97408.0,97407.0,0.051348]
[1734815529154,0.05922696,97408.0,97407.0,0.412148]
[1734815529346,0.15265935,97408.0,97407.0,0.412148]
[1734815530057,0.15265935,97408.0,97407.0,0.45036357]
[1734815530258,0.13975935,97408.0,97407.0,0.412148]
[1734815530466,0.05922696,97415.0,97414.0,0.051345]
[1734815530757,0.05922696,97415.0,97414.0,0.412145]
[1734815530966,0.0636,97431.0,97430.0,0.051336]
[1734815532553,0.0726,97431.0,97430.0,0.052336]
[1734815533559,0.0786,97431.0,97430.0,0.053336]
[1734815534560,0.0786,97431.0,97414.0,0.36152]
[1734815534763,0.051342,97419.0,97417.0,0.051343]
[1734815537072,0.011,97419.0,97411.0,0.051346]
[1734815537274,0.011,97419.0,97410.0,0.00153975]
[1734815537579,0.051344,97416.0,97412.0,0.051346]
[1734815538164,0.051346,97412.0,97410.0,0.00153975]
[1734815538477,0.0655,97411.0,97410.0,0.00153975]
[1734815540471,0.0675,97411.0,97396.0,0.051354]
[1734815540770,0.0675,97411.0,97400.0,0.051352]
[1734815540771,0.0313,97410.0,97400.0,0.051352]
[1734815541179,0.051351,97402.0,97400.0,0.051352]
[1734815541471,0.15304428,97410.0,97408.0,0.051348]
[1734815541871,0.15704428,97410.0,97408.0,0.051348]
[1734815542576,0.0353,97410.0,97408.0,0.051348]
[1734815543678,0.0313,97410.0,97408.0,0.051348]
[1734815543882,0.0333,97410.0,97408.0,0.051348]
[1734815544575,0.0383,97410.0,97408.0,0.051348]
[1734815545765,0.007,97410.0,97408.0,0.051348]
[1734815546177,0.006,97410.0,97408.0,0.051348]
[1734815546479,0.004,97410.0,97408.0,0.051348]
[1734815546670,0.006,97410.0,97408.0,0.051348]
[1734815551575,0.006,97410.0,97408.0,0.06148786]
[1734815553772,0.0306,97422.0,97408.0,0.30721179]
[1734815553971,0.12174428,97427.0,97421.0,0.412141]
[1734815554179,0.12174428,97427.0,97426.0,0.051338]
[1734815555386,0.0303,97434.0,97421.0,0.412861]
[1734815555677,0.0303,97434.0,97428.0,0.051337]
[1734815557179,0.0398,97429.0,97428.0,0.052337]
[1734815558277,0.0448,97429.0,97428.0,0.052337]
[1734815559782,0.4155928,97429.0,97424.0,0.18432421]
[1734815559981,0.051341,97421.0,97420.0,0.21466403]
[1734815560183,0.4303317,97421.0,97420.0,0.21466403]
[1734815561179,0.48053081,97421.0,97408.0,0.00072]
[1734815561387,0.051349,97406.0,97403.0,0.05135]
[1734815561581,0.051351,97402.0,97397.0,0.051353]
[1734815561986,0.051351,97402.0,97393.0,0.051356]
[1734815562290,0.051351,97402.0,97392.0,0.3608]
[1734815562593,0.051351,97402.0,97399.0,0.051353]
[1734815563686,0.051352,97401.0,97399.0,0.051353]
[1734815567291,0.12192197,97408.0,97392.0,0.3608]
[1734815567487,0.12192197,97407.0,97406.0,0.051348]
[1734815568483,0.051347,97410.0,97400.0,0.3608]
[1734815568686,0.051347,97410.0,97409.0,0.051347]
[1734815569881,0.056347,97410.0,97409.0,0.052347]
[1734815571178,0.058347,97410.0,97409.0,0.052347]
[1734815574796,0.058347,97410.0,97409.0,0.001]
[1734815575096,0.18026897,97410.0,97409.0,0.001]
[1734815575684,0.21046897,97410.0,97409.0,0.001]
[1734815576407,0.05135,97404.0,97403.0,0.05135]
[1734815578196,0.05235,97404.0,97403.0,0.05135]
[1734815578689,0.05535,97404.0,97403.0,0.05135]
[1734815581299,0.051353,97399.0,97397.0,0.051353]
[1734815581499,0.051353,97399.0,97398.0,0.051353]
[1734815583388,0.1218562,97410.0,97397.0,0.001]
[1734815583588,0.1218562,97410.0,97409.0,0.051347]
[1734815584688,0.1278562,97410.0,97409.0,0.052347]
[1734815585095,0.1228562,97410.0,97409.0,0.051347]
[1734815585295,0.1268562,97410.0,97409.0,0.051347]
[1734815586202,0.006,97410.0,97409.0,0.051347]
[1734815586995,0.002,97410.0,97409.0,0.051347]
[1734815587195,0.1278562,97410.0,97409.0,0.051347]
[1734815588805,0.006,97410.0,97409.0,0.051347]
[1734815589505,0.01421233,97410.0,97409.0,0.051347]
[1734815589708,0.006,97410.0,97409.0,0.051347]
[1734815589889,0.01421233,97410.0,97409.0,0.412147]
[1734815590208,0.051338,97427.0,97409.0,0.412147]
[1734815590209,0.18274746,97415.0,97409.0,0.42216266]
[1734815590393,0.18274746,97415.0,97414.0,0.051345]
[1734815591699,0.18274746,97415.0,97414.0,0.053345]
[1734815592102,0.21281352,97426.0,97414.0,0.053345]
[1734815592103,0.09161036,97416.0,97415.0,0.051344]
[1734815593500,0.09161036,97422.0,97414.0,0.056345]
[1734815593702,0.09161036,97422.0,97421.0,0.051341]
[1734815594697,0.36132001,97431.0,97421.0,0.051341]
[1734815594698,0.09161036,97423.0,97421.0,0.051341]
[1734815594897,0.002,97422.0,97421.0,0.051341]
[1734815596811,0.003,97422.0,97421.0,0.051341]
[1734815599697,0.001,97422.0,97421.0,0.051341]
[1734815599901,0.004,97422.0,97421.0,0.051341]
[1734815606911,0.01420561,97422.0,97421.0,0.051341]
[1734815610316,0.004,97422.0,97405.0,0.3608]
[1734815610620,0.051345,97415.0,97413.0,0.051345]
[1734815610919,0.0323,97414.0,97413.0,0.051345]
[1734815612216,0.0323,97414.0,97413.0,0.052345]
[1734815612612,0.0323,97414.0,97413.0,0.054345]
[1734815613205,0.0323,97414.0,97413.0,0.052345]
[1734815613805,0.15435308,97414.0,97413.0,0.052345]
[1734815614005,0.15435308,97414.0,97413.0,0.051345]
[1734815615410,0.15535308,97414.0,97413.0,0.051345]
[1734815615917,0.15835308,97414.0,97413.0,0.051345]
[1734815616221,0.0363,97414.0,97413.0,0.051345]
[1734815616522,0.04652483,97414.0,97413.0,0.051345]
[1734815617107,0.04552483,97414.0,97413.0,0.051345]
[1734815618113,0.04252483,97414.0,97413.0,0.051345]
[1734815618307,0.04352483,97414.0,97413.0,0.051345]
[1734815618722,0.09486983,97414.0,97413.0,0.051345]
[1734815619916,0.09493124,97414.0,97413.0,0.051345]
[1734815621609,0.051349,97406.0,97403.0,0.05135]
[1734815621911,0.05178507,97414.0,97403.0,0.05135]
[1734815621912,0.06983507,97405.0,97403.0,0.05135]
[1734815622220,0.0184867,97404.0,97403.0,0.05135]
[1734815622621,0.01028787,97404.0,97403.0,0.05135]
[1734815622827,0.01028787,97404.0,97403.0,0.05735]
[1734815624211,0.01028787,97404.0,97403.0,0.05135]
[1734815624620,0.01028787,97404.0,97393.0,0.24610605]
[1734815624809,0.051353,97398.0,97396.0,0.051354]
[1734815625014,0.01028787,97397.0,97396.0,0.051354]
[1734815625422,0.01032048,97397.0,97391.0,0.0637]
[1734815625622,0.3608,97400.0,97390.0,0.24610605]
[1734815625623,0.051356,97394.0,97390.0,0.24610605]
[1734815625822,0.3608,97392.0,97390.0,0.24610605]
[1734815626021,0.01032048,97391.0,97390.0,0.24610605]
[1734815626327,0.05187701,97392.0,97390.0,0.24610605]
[1734815626518,0.051357,97392.0,97390.0,0.24610605]
[1734815626713,0.01032048,97391.0,97389.0,0.051358]
[1734815627220,0.01032048,97391.0,97390.0,0.004]
[1734815627428,0.051357,97392.0,97390.0,0.004]
[1734815627618,0.01032048,97391.0,97390.0,0.004]
[1734815628020,0.01032048,97391.0,97389.0,0.055358]
[1734815628217,0.01032048,97390.0,97389.0,0.055358]
[1734815628523,0.001,97391.0,97390.0,0.008]
[1734815628729,0.01136939,97391.0,97390.0,0.008]
[1734815629327,0.01036939,97391.0,97389.0,0.004]
[1734815629529,0.09552639,97390.0,97389.0,0.008]
[1734815630221,0.06779765,97390.0,97372.0,0.051366]
[1734815630418,0.3608,97375.0,97372.0,0.051366]
[1734815631317,0.3608,97375.0,97374.0,0.00612942]
[1734815631713,0.3618,97375.0,97374.0,0.01512942]
[1734815632827,0.3943,97375.0,97374.0,0.01512942]
[1734815633031,0.40471373,97375.0,97374.0,0.01512942]
[1734815633218,0.40471373,97375.0,97350.0,0.061]
[1734815633219,0.08097656,97360.0,97350.0,0.061]
[1734815633417,0.3608,97354.0,97350.0,0.061]
[1734815633824,0.12162999,97360.0,97350.0,0.061]
[1734815634022,0.051374,97360.0,97350.0,0.061]
[1734815634327,0.051374,97360.0,97350.0,0.062]
[1734815634328,0.00010111,97359.0,97350.0,0.062]
[1734815634529,0.051375,97357.0,97350.0,0.001]
[1734815634728,0.051375,97357.0,97349.0,0.00154079]
[1734815634729,0.051377,97353.0,97349.0,0.00154079]
[1734815636023,0.051378,97351.0,97349.0,0.00254079]
[1734815636437,0.3608,97354.0,97352.0,0.051377]
[1734815637519,0.3628,97354.0,97352.0,0.051377]
[1734815639935,0.051394,97322.0,97317.0,0.09650072]
[1734815640117,0.051399,97312.0,97311.0,0.01603836]
[1734815640519,0.01544,97312.0,97298.0,0.3691566]
[1734815640726,0.3608,97302.0,97301.0,0.0929]
[1734815640935,0.3608,97302.0,97301.0,0.0303]
[1734815640936,0.36088327,97302.0,97301.0,0.0303]
[1734815641834,0.36088327,97302.0,97298.0,0.3684366]
[1734815642017,0.36088327,97302.0,97301.0,0.0302]
[1734815642332,0.36188327,97302.0,97301.0,0.0302]
[1734815643422,0.09130353,97313.0,97301.0,0.0332]
[1734815643638,0.09130353,97313.0,97304.0,0.051403]
[1734815643956,0.36136001,97318.0,97305.0,0.051402]
[1734815644129,0.3608,97318.0,97304.0,0.20656344]
[1734815644337,0.0001173,97317.0,97307.0,0.051401]
[1734815644532,0.0001173,97317.0,97304.0,0.20656344]
[1734815644732,0.0001173,97317.0,97313.0,0.051398]
[1734815644938,0.0001173,97317.0,97314.0,0.0308]
[1734815645234,0.0001173,97317.0,97315.0,0.051397]
[1734815645823,0.3608,97318.0,97315.0,0.051397]
[1734815646835,0.001,97317.0,97315.0,0.051397]
[1734815647533,0.3608,97326.0,97315.0,0.051397]
[1734815647833,0.001,97318.0,97315.0,0.051397]
[1734815648536,0.004,97317.0,97315.0,0.051397]
[1734815648926,0.001,97317.0,97315.0,0.051397]
[1734815649236,0.001,97317.0,97316.0,0.0314]
[1734815649625,0.004,97317.0,97316.0,0.0314]
[1734815649830,0.003,97317.0,97316.0,0.0314]
[1734815651127,0.004,97317.0,97316.0,0.0314]
[1734815651637,0.004,97317.0,97315.0,0.04134156]
[1734815652929,0.003,97317.0,97315.0,0.04134156]
[1734815653129,0.004,97317.0,97315.0,0.04134156]
[1734815653535,0.09130353,97333.0,97314.0,0.0308]
[1734815653536,0.09130353,97333.0,97316.0,0.3608]
[1734815653730,0.01094525,97340.0,97320.0,0.12178891]
[1734815653932,0.15385139,97342.0,97336.0,0.051386]
[1734815654138,0.3608,97338.0,97328.0,0.05139]
[1734815654331,0.051386,97336.0,97332.0,0.051388]
[1734815654532,0.3608,97338.0,97335.0,0.051386]
[1734815655241,0.3608,97338.0,97327.0,0.3608]
[1734815655442,0.3608,97338.0,97337.0,0.051385]
[1734815656541,0.3698,97338.0,97337.0,0.051385]
[1734815657036,0.3748,97338.0,97337.0,0.051385]
[1734815659036,0.38526143,97338.0,97337.0,0.051385]
[1734815659240,0.3748,97338.0,97337.0,0.051385]
[1734815659440,0.38526143,97338.0,97337.0,0.051385]
[1734815661639,0.02446143,97338.0,97337.0,0.051385]
[1734815661844,0.014,97338.0,97337.0,0.051385]
[1734815664245,0.014,97338.0,97337.0,0.412185]
[1734815664940,0.01042584,97347.0,97346.0,0.051381]
[1734815665145,0.01041678,97347.0,97346.0,0.051381]
[1734815665346,0.12184684,97348.0,97346.0,0.051381]
[1734815666040,0.015,97347.0,97346.0,0.052381]
[1734815666646,0.006,97347.0,97346.0,0.052381]
[1734815667241,0.009,97348.0,97346.0,0.051381]
[1734815667437,0.016,97348.0,97346.0,0.052381]
[1734815668243,0.009,97347.0,97346.0,0.053381]
[1734815668843,0.009,97348.0,97346.0,0.01124856]
[1734815669044,0.005,97347.0,97346.0,0.06262956]
[1734815669443,0.014,97347.0,97346.0,0.06262956]
[1734815669843,0.009,97347.0,97346.0,0.06262956]
[1734815670151,0.014,97348.0,97346.0,0.06262956]
[1734815671646,0.009,97348.0,97346.0,0.06362956]
[1734815671853,0.006,97347.0,97346.0,0.06362956]
[1734815672248,0.006,97347.0,97346.0,0.06262956]
[1734815672447,0.009,97347.0,97346.0,0.06262956]
[1734815672750,0.009,97347.0,97346.0,0.06362956]
[1734815673146,0.009,97347.0,97346.0,0.06262956]
[1734815673352,0.015,97347.0,97346.0,0.06362956]
[1734815673966,0.12184684,97358.0,97357.0,0.051375]
[1734815674144,0.12184684,97358.0,97357.0,0.412175]
[1734815674542,0.12184684,97362.0,97357.0,0.3608]
[1734815674755,0.12184684,97362.0,97361.0,0.051373]
[1734815675955,0.12684684,97362.0,97361.0,0.051373]
[1734815676454,0.005,97362.0,97361.0,0.051373]
[1734815690769,0.01538039,97362.0,97360.0,0.051373]
[1734815690968,0.10428039,97361.0,97360.0,0.051373]
[1734815691372,0.15565339,97361.0,97360.0,0.051373]
[1734815691569,0.15565339,97361.0,97345.0,0.54487078]
[1734815691764,0.01038039,97360.0,97345.0,0.54487078]
[1734815691966,0.01038039,97359.0,97345.0,0.54487078]
[1734815692167,0.01038039,97358.0,97345.0,0.54487078]
[1734815692362,0.145273,97361.0,97353.0,0.3608]
[1734815692363,0.01035581,97357.0,97353.0,0.3608]
[1734815692561,0.01035581,97356.0,97354.0,0.051376]
[1734815692768,0.15230856,97361.0,97360.0,0.051373]
[1734815693675,0.002,97362.0,97360.0,0.051373]
[1734815694061,0.00154097,97367.0,97356.0,0.18407078]
[1734815694271,0.002,97361.0,97360.0,0.051373]
[1734815694576,0.003,97361.0,97360.0,0.051373]
[1734815694773,0.001,97361.0,97360.0,0.051373]
[1734815695270,0.01036678,97361.0,97360.0,0.051373]
[1734815695971,0.01336678,97361.0,97360.0,0.051373]
[1734815696773,0.01436678,97361.0,97360.0,0.051373]
[1734815698773,0.13628105,97361.0,97360.0,0.051373]
[1734815699876,0.01436678,97361.0,97360.0,0.051373]
[1734815705484,0.0144555,97361.0,97360.0,0.051373]
[1734815705884,0.01445629,97361.0,97360.0,0.051373]
[1734815707683,0.01445958,97361.0,97360.0,0.051373]
[1734815708382,0.01449491,97361.0,97360.0,0.051373]
[1734815709587,0.13662566,97361.0,97360.0,0.051373]
[1734815710684,0.01448795,97361.0,97360.0,0.051373]
[1734815711499,0.01450255,97361.0,97360.0,0.051373]
[1734815713480,0.004,97361.0,97360.0,0.051373]
[1734815713679,0.01450424,97361.0,97360.0,0.051373]
[1734815714884,0.01450208,97361.0,97360.0,0.051373]
[1734815718089,0.01450208,97361.0,97360.0,0.23612686]
[1734815722987,0.01450208,97361.0,97360.0,0.051373]
[1734815723205,0.004,97361.0,97360.0,0.051373]
[1734815723389,0.01446419,97361.0,97360.0,0.051373]
[1734815723881,0.01446328,97361.0,97360.0,0.051373]
[1734815724291,0.13656893,97361.0,97360.0,0.051373]
[1734815726191,0.04726021,97361.0,97360.0,0.412173]
[1734815726394,0.1423137,97367.0,97366.0,0.05137]
[1734815726595,0.18274746,97372.0,97371.0,0.051367]
[1734815726789,0.18274746,97372.0,97371.0,0.45040518]
[1734815727001,0.14858888,97372.0,97371.0,0.45040518]